fUST/lending_fUST_20241228
["ID","MTS","AMOUNT","RATE_DAILY","PERIOD"]
[346907158,1735356642910,-500.0,9.058e-05,2]
[346907159,1735356642919,-500.0,9.058e-05,2]
[346907160,1735356642928,-535.85,9.058e-05,2]
[346907161,1735356642937,-500.0,9.058e-05,2]
[346907162,1735356642946,-501.6522498,9.058e-05,2]
[346907163,1735356642955,-500.0,9.058e-05,2]
[346907164,1735356642965,-500.0,9.058e-05,2]
[346907165,1735356642974,-500.0,9.058e-05,2]
[346907166,1735356642983,-563.016206,9.058e-05,2]
[346907167,1735356642993,-500.0,9.058e-05,2]
[346907168,1735356643003,-500.0,9.058e-05,2]
[346907169,1735356643012,-501.92544667,9.058e-05,2]
[346907170,1735356643021,-500.0,9.058e-05,2]
[346907171,1735356643031,-567.09623931,9.058e-05,2]
[346907172,1735356643040,-500.0,9.058e-05,2]
[346907173,1735356643049,-500.0,9.058e-05,2]
[346907174,1735356643059,-500.0,9.058e-05,2]
[346907175,1735356643068,-500.0,9.058e-05,2]
[346907176,1735356643077,-500.0,9.058e-05,2]
[346907177,1735356643087,-500.0,9.058e-05,2]
[346907178,1735356643096,-500.0,9.058e-05,2]
[346907179,1735356643106,-500.0,9.058e-05,2]
[346907180,1735356643116,-500.0,9.058e-05,2]
[346907181,1735356643125,-500.0,9.058e-05,2]
[346907182,1735356643135,-500.0,9.058e-05,2]
[346907183,1735356643145,-500.0,9.058e-05,2]
[346907184,1735356643154,-500.0,9.058e-05,2]
[346907185,1735356643164,-573.38258671,9.058e-05,2]
[346907186,1735356643174,-500.0,9.058e-05,2]
[346907187,1735356643183,-500.0,9.058e-05,2]
[346907188,1735356643193,-500.0,9.058e-05,2]
[346907189,1735356643203,-500.0,9.058e-05,2]
[346907190,1735356643215,-500.0,9.058e-05,2]
[346907191,1735356643225,-500.0,9.058e-05,2]
[346907192,1735356643235,-500.0,9.058e-05,2]
[346907193,1735356643246,-500.0,9.058e-05,2]
[346907194,1735356643256,-500.0,9.058e-05,2]
[346907195,1735356643266,-500.0,9.058e-05,2]
[346907196,1735356643276,-500.0,9.058e-05,2]
[346907197,1735356643286,-501.20180916,9.058e-05,2]
[346907198,1735356643296,-500.0,9.058e-05,2]
[346907199,1735356643306,-500.0,9.058e-05,2]
[346907200,1735356643316,-500.0,9.058e-05,2]
[346907201,1735356643327,-500.0,9.058e-05,2]
[346907202,1735356643337,-493.63244382,9.058e-05,2]
[346907203,1735356643347,-502.23939967,9.058e-05,2]
[346907204,1735356643357,-500.0,9.058e-05,2]
[346907205,1735356643366,-491.59460461,9.058e-05,2]
[346907206,1735356643375,-500.0,9.058e-05,2]
[346907207,1735356643385,-500.0,9.058e-05,2]
[346907208,1735356643395,-500.0,9.058e-05,2]
[346907209,1735356643404,-500.0,9.058e-05,2]
[346907210,1735356643413,-500.0,9.058e-05,2]
[346907211,1735356643423,-500.0,9.058e-05,2]
[346907212,1735356643432,-511.36,9.058e-05,2]
[346907213,1735356643442,-500.0,9.058e-05,2]
[346907214,1735356643451,-500.0,9.058e-05,2]
[346907215,1735356643461,-500.0,9.058e-05,2]
[346907216,1735356643470,-500.0,9.058e-05,2]
[346907217,1735356643479,-500.0,9.058e-05,2]
[346907218,1735356643488,-500.0,9.058e-05,2]
[346907219,1735356643499,-500.0,9.058e-05,2]
[346907220,1735356643508,-500.0,9.058e-05,2]
[346907221,1735356643518,-500.0,9.058e-05,2]
[346907222,1735356643527,-505.74791748,9.058e-05,2]
[346907223,1735356643537,-500.0,9.058e-05,2]
[346907224,1735356643546,-500.0,9.058e-05,2]
[346907225,1735356643556,-500.0,9.058e-05,2]
[346907226,1735356643565,-500.0,9.058e-05,2]
[346907227,1735356643575,-500.0,9.058e-05,2]
[346907228,1735356643584,-500.0,9.058e-05,2]
[346907229,1735356643594,-500.0,9.058e-05,2]
[346907230,1735356643603,-500.0,9.058e-05,2]
[346907231,1735356643616,-500.0,9.058e-05,2]
[346907232,1735356643626,-500.0,9.058e-05,2]
[346907233,1735356643635,-500.0,9.058e-05,2]
[346907234,1735356643644,-500.0,9.058e-05,2]
[346907235,1735356643654,-500.0,9.058e-05,2]
[346907236,1735356643665,-500.0,9.058e-05,2]
[346907237,1735356643675,-500.0,9.058e-05,2]
[346907238,1735356643684,-500.0,9.058e-05,2]
[346907239,1735356643694,-500.0,9.058e-05,2]
[346907240,1735356643704,-500.0,9.058e-05,2]
[346907241,1735356643714,-500.0,9.058e-05,2]
[346907242,1735356643723,-500.0,9.058e-05,2]
[346907243,1735356643732,-500.0,9.058e-05,2]
[346907244,1735356643742,-500.0,9.058e-05,2]
[346907245,1735356643752,-500.0,9.058e-05,2]
[346907246,1735356643761,-500.0,9.058e-05,2]
[346907247,1735356643771,-500.0,9.058e-05,2]
[346907248,1735356643781,-500.0,9.058e-05,2]
[346907249,1735356643791,-500.0,9.058e-05,2]
[346907250,1735356643801,-500.0,9.058e-05,2]
[346907251,1735356643810,-500.0,9.058e-05,2]
[346907252,1735356643820,-267.59197443,9.058e-05,2]
[346907253,1735356643830,-570.43356481,9.058e-05,2]
[346907254,1735356643839,-500.0,9.058e-05,2]
[346907255,1735356643849,-500.0,9.058e-05,2]
[346907256,1735356643859,-500.0,9.058e-05,2]
[346907257,1735356643868,-500.0,9.058e-05,2]
[346907258,1735356643878,-500.0,9.058e-05,2]
[346907259,1735356643887,-500.0,9.058e-05,2]
[346907260,1735356643897,-500.0,9.058e-05,2]
[346907261,1735356643906,-500.0,9.058e-05,2]
[346907262,1735356643916,-500.0,9.058e-05,2]
[346907263,1735356643925,-500.0,9.058e-05,2]
[346907264,1735356643934,-500.0,9.058e-05,2]
[346907265,1735356643944,-500.0,9.058e-05,2]
[346907266,1735356643953,-500.0,9.058e-05,2]
[346907267,1735356643963,-501.2332454,9.058e-05,2]
[346907268,1735356643973,-500.0,9.058e-05,2]
[346907269,1735356643983,-500.0,9.058e-05,2]
[346907270,1735356643993,-500.0,9.058e-05,2]
[346907271,1735356644002,-500.0,9.058e-05,2]
[346907272,1735356644011,-500.0,9.058e-05,2]
[346907273,1735356644021,-500.0,9.058e-05,2]
[346907274,1735356644030,-500.0,9.058e-05,2]
[346907275,1735356644040,-500.0,9.058e-05,2]
[346907276,1735356644049,-500.0,9.058e-05,2]
[346907277,1735356644059,-500.0,9.058e-05,2]
[346907278,1735356644068,-500.0,9.058e-05,2]
[346907279,1735356644078,-500.0,9.058e-05,2]
[346907280,1735356644087,-500.0,9.058e-05,2]
[346907281,1735356644096,-500.0,9.058e-05,2]
[346907282,1735356644107,-3549.04,9.058e-05,2]
[346907283,1735356644118,-3549.04,9.058e-05,2]
[346907284,1735356644129,-500.0,9.058e-05,2]
[346907285,1735356644139,-3549.04,9.058e-05,2]
[346907286,1735356644148,-500.89251274,9.058e-05,2]
[346907287,1735356644158,-500.0,9.058e-05,2]
[346907288,1735356644168,-500.0,9.058e-05,2]
[346907289,1735356644177,-500.0,9.058e-05,2]
[346907290,1735356644187,-500.0,9.058e-05,2]
[346907291,1735356644197,-500.0,9.058e-05,2]
[346907292,1735356644206,-500.0,9.058e-05,2]
[346907293,1735356644216,-500.0,9.058e-05,2]
[346907294,1735356644225,-500.0,9.058e-05,2]
[346907295,1735356644235,-500.0,9.058e-05,2]
[346907296,1735356644245,-500.0,9.058e-05,2]
[346907297,1735356644254,-500.0,9.058e-05,2]
[346907298,1735356644263,-500.0,9.058e-05,2]
[346907299,1735356644272,-500.0,9.058e-05,2]
[346907300,1735356644281,-500.0,9.058e-05,2]
[346907301,1735356644291,-500.0,9.058e-05,2]
[346907302,1735356644301,-500.0,9.058e-05,2]
[346907303,1735356644310,-500.0,9.058e-05,2]
[346907304,1735356644319,-502.04418881,9.058e-05,2]
[346907305,1735356644328,-501.52530935,9.058e-05,2]
[346907306,1735356644337,-500.0,9.058e-05,2]
[346907307,1735356644347,-500.0,9.058e-05,2]
[346907308,1735356644357,-500.0,9.058e-05,2]
[346907309,1735356644367,-500.0,9.058e-05,2]
[346907310,1735356644376,-500.0,9.058e-05,2]
[346907311,1735356644386,-500.0,9.058e-05,2]
[346907312,1735356644396,-87.00046676,9.058e-05,2]
[346907313,1735356644544,-414.21850652,9.058e-05,2]
[346907314,1735356644554,-82.53149548,9.058e-05,2]
[346907315,1735356644566,-332.91988524,9.058e-05,2]
[346907316,1735356644598,-500.0,9.056e-05,2]
[346907317,1735356644608,-41.65683526,9.058e-05,2]
[346907318,1735356644623,-42.89178402,9.058e-05,2]
[346907319,1735356644633,-500.26217952,9.058e-05,2]
[346907320,1735356644643,-500.0,9.058e-05,2]
[346907321,1735356644652,-500.0,9.058e-05,2]
[346907322,1735356644757,-500.0,9.058e-05,2]
[346907323,1735356644767,-342.88683888,9.058e-05,2]
[346907324,1735356645193,-157.11316112,9.058e-05,2]
[346907325,1735356645203,-264.44683888,9.058e-05,2]
[346907326,1735356645215,-98.85597317,9.058e-05,2]
[346907327,1735356645225,-500.0,9.058e-05,2]
[346907328,1735356645235,-500.0,9.058e-05,2]
[346907329,1735356645245,-500.0,9.058e-05,2]
[346907330,1735356645255,-501.09162671,9.058e-05,2]
[346907331,1735356645264,-500.0,9.058e-05,2]
[346907332,1735356645274,-501.00609834,9.058e-05,2]
[346907333,1735356645284,-500.0,9.058e-05,2]
[346907334,1735356645293,-500.0,9.058e-05,2]
[346907335,1735356645303,-500.0,9.058e-05,2]
[346907336,1735356645313,-503.12843763,9.058e-05,2]
[346907337,1735356645323,-501.24846821,9.058e-05,2]
[346907338,1735356645333,-501.64199885,9.058e-05,2]
[346907339,1735356645343,-500.0,9.058e-05,2]
[346907340,1735356645352,-500.0,9.058e-05,2]
[346907341,1735356645363,-511.43380136,9.058e-05,2]
[346907342,1735356645372,-500.0,9.058e-05,2]
[346907343,1735356645383,-500.0,9.058e-05,2]
[346907344,1735356645393,-500.44033693,9.058e-05,2]
[346907345,1735356645402,-477.67692493,9.058e-05,2]
[346907368,1735356645995,-22.32307507,9.058e-05,2]
[346907369,1735356646005,-500.0,9.058e-05,2]
[346907370,1735356646014,-625.25891897,9.058e-05,2]
[346907371,1735356646023,-500.0,9.058e-05,2]
[346907372,1735356646033,-313.13781388,9.059e-05,2]
[346907373,1735356646043,-500.0,9.059e-05,2]
[346907374,1735356646052,-500.0,9.059e-05,2]
[346907375,1735356646062,-494.89988843,9.06e-05,2]
[346907376,1735356646071,-553.92122829,9.06e-05,2]
[346907377,1735356646081,-584.93264496,9.06e-05,2]
[346907378,1735356646090,-500.0,9.06e-05,2]
[346907379,1735356646100,-500.0,9.06e-05,2]
[346907380,1735356646110,-558.02471283,9.06e-05,2]
[346907381,1735356646119,-500.0,9.06e-05,2]
[346907382,1735356646129,-500.0,9.06e-05,2]
[346907383,1735356646139,-501.9451101,9.06e-05,2]
[346907384,1735356646149,-500.0,9.06e-05,2]
[346907385,1735356646158,-500.0,9.06e-05,2]
[346907386,1735356646168,-500.0,9.06e-05,2]
[346907387,1735356646178,-500.0,9.06e-05,2]
[346907388,1735356646188,-500.0,9.06e-05,2]
[346907389,1735356646198,-500.0,9.06e-05,2]
[346907390,1735356646208,-500.0,9.06e-05,2]
[346907391,1735356646218,-500.0,9.06e-05,2]
[346907392,1735356646227,-3549.04,9.06e-05,2]
[346907393,1735356646237,-500.57163616,9.06e-05,2]
[346907394,1735356646246,-500.0,9.061e-05,2]
[346907395,1735356646255,-500.0,9.061e-05,2]
[346907396,1735356646265,-500.0,9.061e-05,2]
[346907397,1735356646275,-500.0,9.061e-05,2]
[346907398,1735356646284,-501.49468527,9.061e-05,2]
[346907399,1735356646294,-500.0,9.062e-05,2]
[346907400,1735356646303,-500.0,9.062e-05,2]
[346907401,1735356646312,-500.0,9.062e-05,2]
[346907402,1735356646322,-500.0,9.062e-05,2]
[346907403,1735356646332,-500.0,9.062e-05,2]
[346907404,1735356646341,-500.0,9.33e-05,2]
[346907405,1735356646351,-500.0,9.33e-05,2]
[346907406,1735356646361,-500.0,9.33e-05,2]
[346907407,1735356646371,-500.0,9.33e-05,2]
[346907408,1735356646381,-273.17838373,9.33e-05,2]
[346907409,1735356646390,-500.0,9.33e-05,2]
[346907410,1735356646399,-504.33977082,9.33e-05,2]
[346907411,1735356646409,-268.7287307,9.33e-05,2]
[346907412,1735356646419,-500.0,9.33e-05,2]
[346907413,1735356646428,-500.93725438,9.331e-05,2]
[346907414,1735356646437,-500.0,9.331e-05,2]
[346907415,1735356646447,-500.0,9.331e-05,2]
[346907416,1735356646456,-500.39945779,9.331e-05,2]
[346907417,1735356646466,-500.0,9.331e-05,2]
[346907418,1735356646476,-500.0,9.331e-05,2]
[346907419,1735356646486,-500.0,9.331e-05,2]
[346907420,1735356646498,-500.0,9.331e-05,2]
[346907421,1735356646508,-500.0,9.331e-05,2]
[346907422,1735356646517,-500.0,9.331e-05,2]
[346907423,1735356646527,-500.0,9.331e-05,2]
[346907424,1735356646536,-500.0,9.331e-05,2]
[346907425,1735356646545,-500.0,9.331e-05,2]
[346907426,1735356646554,-500.0,9.331e-05,2]
[346907427,1735356646564,-500.0,9.331e-05,2]
[346907428,1735356646573,-500.0,9.331e-05,2]
[346907429,1735356646583,-500.0,9.331e-05,2]
[346907430,1735356646592,-597.23,9.331e-05,2]
[346907431,1735356646601,-500.0,9.331e-05,2]
[346907432,1735356646613,-500.0,9.331e-05,2]
[346907433,1735356646625,-501.06987348,9.331e-05,2]
[346907434,1735356646634,-500.0,9.331e-05,2]
[346907435,1735356646644,-500.0,9.331e-05,2]
[346907436,1735356646654,-623.98,9.331e-05,2]
[346907437,1735356646665,-500.0,9.331e-05,2]
[346907438,1735356646674,-500.0,9.331e-05,2]
[346907439,1735356646684,-500.0,9.331e-05,2]
[346907440,1735356646696,-502.459236,9.331e-05,2]
[346907441,1735356646706,-500.67483763,9.331e-05,2]
[346907442,1735356646715,-500.0,9.331e-05,2]
[346907443,1735356646725,-424.5,9.331e-05,2]
[346907444,1735356646735,-609.45,9.331e-05,2]
[346907445,1735356646745,-500.0,9.331e-05,2]
[346907446,1735356646754,-500.0,9.331e-05,2]
[346907447,1735356646764,-295.61339035,9.331e-05,2]
[346907448,1735356646774,-495.66930526,9.331e-05,2]
[346907449,1735356646783,-500.0,9.332e-05,2]
[346907450,1735356646793,-255.25,9.332e-05,2]
[346907451,1735356646802,-500.0,9.332e-05,2]
[346907452,1735356646811,-500.0,9.332e-05,2]
[346907453,1735356646821,-347.28108892,9.332e-05,2]
[346907454,1735356646830,-500.0,9.332e-05,2]
[346907455,1735356646840,-490.35748781,9.332e-05,2]
[346907456,1735356646849,-464.89622282,9.332e-05,2]
[346907457,1735356646859,-500.53820356,9.332e-05,2]
[346907458,1735356646869,-500.0,9.332e-05,2]
[346907459,1735356646879,-501.01006455,9.332e-05,2]
[346907460,1735356646889,-416.82480303,9.332e-05,2]
[346907461,1735356646899,-624.79,9.332e-05,2]
[346907462,1735356646908,-501.96867922,9.332e-05,2]
[346907463,1735356646917,-500.0,9.332e-05,2]
[346907464,1735356646927,-553.8170165,9.332e-05,2]
[346907465,1735356646937,-500.0,9.332e-05,2]
[346907466,1735356646947,-502.20291236,9.332e-05,2]
[346907467,1735356646956,-500.0,9.332e-05,2]
[346907468,1735356646965,-500.0,9.332e-05,2]
[346907469,1735356646975,-550.66020218,9.332e-05,2]
[346907470,1735356646984,-500.0,9.332e-05,2]
[346907471,1735356646995,-500.0,9.333e-05,2]
[346907472,1735356647007,-500.0,9.334e-05,2]
[346907473,1735356647016,-435.4,9.336e-05,2]
[346907474,1735356647026,-608.56061156,9.604e-05,2]
[346907475,1735356647035,-572.15,9.608e-05,2]
[346907476,1735356647045,-500.0,9.882e-05,2]
[346907477,1735356647054,-500.0,9.882e-05,2]
[346907478,1735356647063,-500.0,9.882e-05,2]
[346907479,1735356647073,-3549.04,9.882e-05,2]
[346907480,1735356647083,-9816.98319332,0.000125,2]
[346907481,1735356647094,-500.0,0.00013167,2]
[346907482,1735356647103,-500.0,0.00013167,2]
[346907483,1735356647113,-500.0,0.00013167,2]
[346907484,1735356647123,-500.0,0.00013167,2]
[346907485,1735356647132,-3549.04,0.00013167,2]
[346907486,1735356647142,-500.0,0.00013168,2]
[346907487,1735356647152,-500.0,0.00013168,2]
[346907488,1735356647161,-500.0,0.00013168,2]
[346907489,1735356647171,-591.02,0.00013168,2]
[346907490,1735356647181,-500.0,0.00013168,2]
[346907491,1735356647191,-500.0,0.00013168,2]
[346907492,1735356647202,-500.0,0.00013168,2]
[346907493,1735356647211,-501.63965516,0.00013168,2]
[346907494,1735356647220,-637.8,0.00013168,2]
[346907495,1735356647231,-500.0,0.00013168,2]
[346907496,1735356647242,-500.0,0.00013442,2]
[346907497,1735356647251,-591.02,0.00013442,2]
[346907498,1735356647261,-500.0,0.00013442,2]
[346907499,1735356647271,-500.0,0.00013442,2]
[346907500,1735356647280,-500.0,0.00013442,2]
[346907501,1735356647289,-500.0,0.00013444,2]
[346907502,1735356647300,-500.0,0.00013716,2]
[346907503,1735356647310,-616.72,0.00013716,2]
[346907504,1735356647320,-591.02,0.00013716,2]
[346907505,1735356647329,-485.48111112,0.00013716,2]
[346907506,1735356647339,-500.0,0.00013716,2]
[346907507,1735356647350,-400.0,0.00013973,2]
[346907508,1735356647361,-500.0,0.0001399,2]
[346907509,1735356647370,-616.72,0.0001399,2]
[346907510,1735356647381,-591.02,0.0001399,2]
[346907511,1735356647391,-506.02271756,0.0001399,2]
[346907512,1735356647400,-437.77072501,0.00013991,2]
[346907513,1735356647411,-151.0,0.00014,2]
[346907514,1735356647420,-500.0,0.00014264,2]
[346907515,1735356647431,-616.72,0.00014264,2]
[346907516,1735356647441,-591.02,0.00014264,2]
[346907517,1735356647452,-151.0,0.000145,2]
[346907518,1735356647463,-500.0,0.00014538,2]
[346907519,1735356647472,-616.72,0.00014538,2]
[346907520,1735356647482,-592.261,0.00014548,2]
[346907521,1735356647492,-618.55824193,0.00014811,2]
[346907522,1735356647501,-500.0,0.00014812,2]
[346907523,1735356647511,-616.72,0.00014812,2]
[346907524,1735356647520,-151.0,0.00015,2]
[346907525,1735356647529,-626.8521392,0.00015086,2]
[346907526,1735356647540,-616.72,0.00015086,2]
[346907527,1735356647550,-616.72,0.0001536,2]
[346907528,1735356647640,-151.0,0.000155,2]
[346907529,1735356647650,-616.72,0.00015634,2]
[346907530,1735356647662,-500.0,0.00015899,2]
[346907531,1735356647673,-500.0,0.00015899,2]
[346907532,1735356647683,-500.0,0.00015899,2]
[346907533,1735356647694,-500.0,0.00015899,2]
[346907534,1735356647705,-500.0,0.00015899,2]
[346907535,1735356647715,-404.46511616,0.00015899,2]
[346907536,1735356647724,-3549.04,0.00015899,2]
[346907537,1735356647734,-3549.04,0.00015899,2]
[346907538,1735356647746,-2175.38973002,0.000159,2]
[346907539,1735356647755,-616.72,0.00015908,2]
[346907540,1735356647765,-500.0,0.00015973,2]
[346907541,1735356647775,-500.0,0.00015999,2]
[346907542,1735356647784,-500.0,0.00015999,2]
[346907543,1735356647794,-500.0,0.00015999,2]
[346907544,1735356647803,-500.0,0.00015999,2]
[346907545,1735356647820,-500.0,0.00015999,2]
[346907546,1735356647833,-500.0,0.00015999,2]
[346907547,1735356647843,-490.67826146,0.00015999,2]
[346907548,1735356647853,-500.0,0.00015999,2]
[346907549,1735356647864,-500.0,0.00015999,2]
[346907550,1735356647874,-500.0,0.00015999,2]
[346907551,1735356647884,-500.0,0.00015999,2]
[346907552,1735356647894,-500.0,0.00015999,2]
[346907553,1735356647904,-500.0,0.00015999,2]
[346907554,1735356647914,-500.0,0.00015999,2]
[346907555,1735356647925,-500.0,0.00015999,2]
[346907556,1735356647935,-500.0,0.00015999,2]
[346907557,1735356647945,-280.6,0.00015999,2]
[346907558,1735356647955,-3549.04,0.00015999,2]
[346907559,1735356647966,-3549.04,0.00015999,2]
[346907560,1735356647976,-3549.04,0.00015999,2]
[346907561,1735356647986,-3549.04,0.00015999,2]
[346907562,1735356647996,-3549.04,0.00015999,2]
[346907563,1735356648006,-3549.04,0.00015999,2]
[346907564,1735356648016,-3549.04,0.00015999,2]
[346907565,1735356648026,-1133.70070748,0.00015999,2]
[346907566,1735356648043,-1126.61157,0.00015999,2]
[346907567,1735356658537,525.50747744,8.965e-05,2]
[346907568,1735356673514,1157.3626534,8.965e-05,2]
[346907569,1735356735671,299.76359925,8.956e-05,2]
[346907570,1735356760123,392.23258361,8.956e-05,2]
[346907571,1735356839213,300.0,8.964e-05,2]
[346907572,1735356854988,300.0,8.964e-05,2]
[346907574,1735357546260,-500.0,9.054e-05,2]
[346907575,1735357546282,-500.0,9.054e-05,2]
[346907576,1735357546306,-300.0,9.054e-05,2]
[346907577,1735357546331,-177.0938492,9.054e-05,2]
[346907578,1735357627098,-300.0,9.053e-05,2]
[346907579,1735357627122,-271.09384017,9.054e-05,2]
[346907580,1735357627146,-500.0,9.054e-05,2]
[346907581,1735357627168,-500.0,9.054e-05,2]
[346907582,1735357627191,-500.0,9.054e-05,2]
[346907583,1735357627217,-500.0,9.054e-05,2]
[346907584,1735357627240,-500.0,9.054e-05,2]
[346907585,1735357627263,-500.0,9.054e-05,2]
[346907586,1735357627288,-461.96035609,9.054e-05,2]
[346907587,1735357647129,-38.03964391,9.054e-05,2]
[346907588,1735357647153,-239.95091475,9.054e-05,2]
[346907589,1735357651087,-260.04908525,9.054e-05,2]
[346907590,1735357651109,-500.0,9.054e-05,2]
[346907591,1735357651133,-500.0,9.054e-05,2]
[346907592,1735357651155,-644.05303436,9.054e-05,2]
[346907593,1735357651178,-500.0,9.054e-05,2]
[346907594,1735357651200,-212.09096635,9.054e-05,2]
[346907595,1735357759819,-500.0,9.053e-05,2]
[346907596,1735357759846,-300.0,9.053e-05,2]
[346907597,1735357759872,-287.90903365,9.054e-05,2]
[346907598,1735357759897,-414.48926583,9.054e-05,2]
[346907599,1735357759927,-87.49503938,9.054e-05,2]
[346907600,1735357759956,-153.2636411,9.054e-05,2]
[346907601,1735357759982,-500.0,9.054e-05,2]
[346907602,1735357760007,-587.82425264,9.054e-05,2]
[346907603,1735357760032,-173.81536636,9.054e-05,2]
[346907604,1735357760062,-217.14316209,9.054e-05,2]
[346907605,1735357762209,-109.04147155,9.054e-05,2]
[346907606,1735357762251,-500.0,9.054e-05,2]
[346907607,1735357762292,-606.31907927,9.054e-05,2]
[346907608,1735357762333,-320.34356017,9.054e-05,2]
[346907609,1735357762376,-500.0,9.054e-05,2]
[346907610,1735357762420,-500.0,9.054e-05,2]
[346907611,1735357762465,-500.0,9.054e-05,2]
[346907612,1735357762507,-57.6565032,9.054e-05,2]
[346907613,1735357769140,-442.3434968,9.054e-05,2]
[346907614,1735357769161,-500.0,9.054e-05,2]
[346907615,1735357769181,-502.05683743,9.054e-05,2]
[346907616,1735357769201,-455.34811498,9.054e-05,2]
[346907617,1735357769223,-500.0,9.054e-05,2]
[346907618,1735357769243,-176.9723073,9.054e-05,2]
[346907619,1735357784798,-500.0,9.053e-05,2]
[346907620,1735357784823,-323.0276927,9.054e-05,2]
[346907621,1735357784850,-500.0,9.054e-05,2]
[346907622,1735357784875,-243.809402,9.054e-05,2]
[346907623,1735357784906,-258.09649589,9.054e-05,2]
[346907624,1735357784932,-500.0,9.054e-05,2]
[346907625,1735357784960,-419.92879815,9.054e-05,2]
[346907627,1735357809767,-500.0,9.053e-05,2]
[346907628,1735357809794,-500.0,9.053e-05,2]
[346907629,1735357809823,-20.60120811,9.054e-05,2]
[346907630,1735357809856,-59.46999374,9.054e-05,2]
[346907631,1735357809882,-501.62474621,9.054e-05,2]
[346907632,1735357809907,-502.37220969,9.054e-05,2]
[346907633,1735357809933,-500.0,9.054e-05,2]
[346907634,1735357809959,-58.26739284,9.054e-05,2]
[346907724,1735357832674,-500.0,9.053e-05,2]
[346907725,1735357832684,-244.680002,9.053e-05,2]
[346907759,1735357838146,-255.319998,9.053e-05,2]
[346907760,1735357838155,-386.54547735,9.053e-05,2]
[346907762,1735357838165,-218.94453893,9.053e-05,2]
[346907763,1735357838400,-292.49473754,9.053e-05,2]
[346907764,1735357838410,-620.6524063,9.053e-05,2]
[346907765,1735357838420,-500.0,9.053e-05,2]
[346907766,1735357838433,-500.0,9.053e-05,2]
[346907767,1735357838444,-500.0,9.053e-05,2]
[346907768,1735357838453,-500.0,9.053e-05,2]
[346907769,1735357838463,-49.53285616,9.053e-05,2]
[346907770,1735357838475,-450.46714384,9.053e-05,2]
[346907771,1735357838484,-414.41801931,9.053e-05,2]
[346907772,1735357838494,-174.33664442,9.053e-05,2]
[346907773,1735357838503,-500.0,9.053e-05,2]
[346907774,1735357838513,-441.73260716,9.054e-05,2]
[346907775,1735357838523,-500.0,9.054e-05,2]
[346907776,1735357838533,-500.0,9.054e-05,2]
[346907777,1735357838543,-500.0,9.054e-05,2]
[346907778,1735357838552,-554.38951676,9.054e-05,2]
[346907779,1735357838562,-500.0,9.054e-05,2]
[346907780,1735357838571,-500.0,9.054e-05,2]
[346907781,1735357838581,-628.60608037,9.054e-05,2]
[346907782,1735357838591,-500.0,9.054e-05,2]
[346907783,1735357838601,-500.0,9.054e-05,2]
[346907784,1735357838610,-501.03438696,9.054e-05,2]
[346907785,1735357838619,-495.67727586,9.054e-05,2]
[346907786,1735357838629,-500.0,9.054e-05,2]
[346907787,1735357838638,-500.0,9.054e-05,2]
[346907788,1735357838648,-500.0,9.054e-05,2]
[346907789,1735357838657,-500.0,9.054e-05,2]
[346907790,1735357838667,-502.78724837,9.054e-05,2]
[346907791,1735357838677,-500.0,9.054e-05,2]
[346907792,1735357838686,-500.0,9.054e-05,2]
[346907793,1735357838696,-500.0,9.054e-05,2]
[346907794,1735357838706,-500.0,9.054e-05,2]
[346907795,1735357838715,-500.0,9.054e-05,2]
[346907796,1735357838724,-500.0,9.054e-05,2]
[346907797,1735357838734,-500.0,9.054e-05,2]
[346907798,1735357838743,-500.0,9.054e-05,2]
[346907799,1735357838752,-500.0,9.054e-05,2]
[346907800,1735357838762,-500.0,9.054e-05,2]
[346907801,1735357838771,-638.69371148,9.054e-05,2]
[346907802,1735357838780,-500.0,9.054e-05,2]
[346907803,1735357838789,-500.0,9.054e-05,2]
[346907804,1735357838798,-500.0,9.054e-05,2]